bitfinex/quotes_BTCUSD_20240921
["timestamp","ask_amount","ask_price","bid_price","bid_amount"]
[1726878109640,0.000825,63192.0,63190.0,0.17100866]
[1726878109854,0.000825,63192.0,63191.0,0.33406233]
[1726878110316,0.000825,63192.0,63191.0,0.26305367]
[1726878111506,0.001825,63192.0,63191.0,0.31039657]
[1726878111962,0.000825,63192.0,63191.0,0.31039657]
[1726878112684,0.000825,63192.0,63191.0,0.27305367]
[1726878112685,0.001825,63192.0,63191.0,0.27305367]
[1726878115949,0.001825,63192.0,63191.0,0.3009984]
[1726878116680,0.001825,63192.0,63191.0,0.31487959]
[1726878117881,0.001825,63192.0,63191.0,0.05182592]
[1726878118102,0.18666319,63192.0,63191.0,0.05182592]
[1726878118598,0.21272376,63192.0,63191.0,0.01]
[1726878119110,0.02688557,63192.0,63185.0,0.04182592]
[1726878119357,0.02788557,63192.0,63191.0,0.01]
[1726878119574,0.001825,63192.0,63191.0,0.05182592]
[1726878120566,0.000825,63192.0,63191.0,0.04182592]
[1726878121009,0.000825,63192.0,63185.0,0.09605]
[1726878121010,0.023,63191.0,63187.0,0.04182592]
[1726878121235,0.18483819,63188.0,63186.0,0.04182592]
[1726878121453,0.18483819,63188.0,63186.0,0.02791669]
[1726878121630,0.18483819,63188.0,63186.0,0.04179198]
[1726878122059,0.18483819,63188.0,63186.0,0.02791669]
[1726878122271,0.18483819,63188.0,63186.0,0.04179198]
[1726878122909,0.18483819,63188.0,63186.0,0.02791669]
[1726878123118,0.18483819,63188.0,63186.0,0.04179198]
[1726878124205,0.18483819,63188.0,63187.0,0.02791669]
[1726878124920,0.21089815,63188.0,63187.0,0.02791669]
[1726878125320,0.20589815,63188.0,63187.0,0.04179198]
[1726878125781,0.023,63187.0,63186.0,0.02791669]
[1726878125983,0.023,63187.0,63185.0,0.00165]
[1726878125984,0.18605367,63187.0,63185.0,0.00165]
[1726878126215,0.18605367,63186.0,63185.0,0.00165]
[1726878126437,0.36045367,63186.0,63185.0,0.00165]
[1726878126659,0.38640586,63186.0,63185.0,0.00165]
[1726878128131,0.39240586,63186.0,63185.0,0.00265]
[1726878128336,0.21800586,63186.0,63185.0,0.00265]
[1726878128536,0.04895219,63186.0,63185.0,0.00165]
[1726878128978,0.05495219,63186.0,63185.0,0.00265]
[1726878129419,0.03195219,63186.0,63185.0,0.00265]
[1726878129633,0.03195219,63186.0,63185.0,0.23700373]
[1726878129900,0.006,63186.0,63185.0,0.23700373]
[1726878130308,0.000825,63192.0,63185.0,0.23600373]
[1726878130546,0.02592226,63191.0,63186.0,0.14195373]
[1726878130767,0.02592226,63191.0,63187.0,0.04195373]
[1726878130976,0.02592226,63191.0,63188.0,0.04195373]
[1726878131222,0.000825,63192.0,63189.0,0.02819179]
[1726878131658,0.000825,63192.0,63186.0,0.1]
[1726878131936,0.02592177,63191.0,63185.0,0.09705]
[1726878132340,0.000825,63192.0,63187.0,0.1]
[1726878132806,0.000825,63192.0,63188.0,0.94953987]
[1726878133057,0.02592226,63191.0,63190.0,0.1]
[1726878133306,0.000825,63192.0,63190.0,0.1992]
[1726878133758,0.000825,63192.0,63191.0,0.02750343]
[1726878134194,0.001825,63192.0,63191.0,0.02750343]
[1726878134615,0.000825,63192.0,63191.0,0.02750361]
[1726878135051,0.001825,63192.0,63191.0,0.04150361]
[1726878137337,0.0002,63199.0,63192.0,0.1]
[1726878137621,0.0002,63199.0,63198.0,0.1992]
[1726878137832,0.0002,63199.0,63198.0,1.54588855]
[1726878138072,0.0002,63199.0,63198.0,1.84245755]
[1726878138375,0.0002,63199.0,63198.0,0.96934089]
[1726878138593,0.0002,63219.0,63207.0,0.1992]
[1726878138833,0.9494422,63218.0,63217.0,0.17074032]
[1726878139058,0.000825,63252.0,63218.0,0.1]
[1726878139059,0.00127078,63224.0,63218.0,0.1]
[1726878139280,0.00127078,63224.0,63223.0,0.09427567]
[1726878139550,1e-06,63239.0,63238.0,0.258132]
[1726878139774,0.000825,63252.0,63224.0,0.1]
[1726878139775,7e-07,63243.0,63242.0,0.258122]
[1726878140278,7e-07,63243.0,63242.0,0.158122]
[1726878140733,0.16305437,63243.0,63242.0,0.158122]
[1726878140952,0.34789256,63243.0,63242.0,0.158122]
[1726878141181,0.1795877,63243.0,63242.0,0.158122]
[1726878141415,0.36442589,63243.0,63242.0,0.158122]
[1726878141660,0.38742589,63243.0,63242.0,0.168122]
[1726878141903,0.2025877,63243.0,63242.0,0.168122]
[1726878142167,0.03953403,63243.0,63242.0,0.158122]
[1726878142408,0.01653403,63243.0,63242.0,0.158122]
[1726878143100,0.1795877,63243.0,63242.0,0.158122]
[1726878143588,0.1795877,63243.0,63242.0,0.167122]
[1726878143848,0.2025877,63243.0,63242.0,0.167122]
[1726878144102,0.2025877,63243.0,63242.0,0.158122]
[1726878145463,0.2034127,63243.0,63242.0,0.158122]
[1726878150407,0.01735903,63243.0,63242.0,0.158122]
[1726878150646,0.0008257,63243.0,63242.0,0.158122]
[1726878151076,0.0181658,63243.0,63242.0,0.158122]
[1726878151857,0.0181658,63243.0,63242.0,0.258122]
[1726878152356,0.0008257,63243.0,63242.0,0.258122]
[1726878155711,0.01840815,63243.0,63242.0,0.258122]
[1726878156827,0.0008257,63243.0,63242.0,0.258122]
[1726878157255,0.04140114,63243.0,63242.0,0.158122]
[1726878157487,0.48110509,63243.0,63242.0,0.158122]
[1726878157960,0.48110509,63243.0,63242.0,0.15977]
[1726878158242,0.20445481,63243.0,63242.0,0.15977]
[1726878158448,0.01840114,63243.0,63242.0,0.15977]
[1726878158675,0.0008257,63243.0,63242.0,0.15977]
[1726878159129,0.30047598,63243.0,63242.0,0.15977]
[1726878159349,0.31854377,63243.0,63242.0,0.15977]
[1726878159586,0.01889349,63243.0,63242.0,0.15977]
[1726878160032,0.0008257,63243.0,63242.0,0.15977]
[1726878160248,0.0008257,63243.0,63242.0,0.25977]
[1726878160491,0.0008257,63243.0,63242.0,0.33607]
[1726878162526,0.0008257,63243.0,63242.0,0.25977]
[1726878163223,0.0008257,63243.0,63242.0,0.26277]
[1726878163671,0.0008257,63243.0,63242.0,0.25977]
[1726878164116,0.0008257,63243.0,63242.0,0.26677]
[1726878164780,0.0008257,63243.0,63242.0,0.25977]
[1726878165202,0.0008257,63243.0,63242.0,0.26577]
[1726878166524,0.0008257,63243.0,63242.0,0.30362834]
[1726878166739,0.0008257,63243.0,63242.0,0.26577]
[1726878166985,0.0008257,63243.0,63242.0,0.25977]
[1726878167209,0.0008257,63243.0,63242.0,0.29762834]
[1726878167446,0.0008257,63243.0,63242.0,0.30262834]
[1726878167917,0.0008257,63243.0,63242.0,0.29798587]
[1726878168158,0.0008257,63243.0,63242.0,0.30598587]
[1726878171894,0.23718227,63253.0,63242.0,0.30598587]
[1726878171895,0.0037527,63281.0,63259.0,0.023]
[1726878172161,0.0037527,63281.0,63260.0,0.03821587]
[1726878172162,0.23718227,63265.0,63260.0,0.03821587]
[1726878172393,0.23718227,63272.0,63259.0,0.2235]
[1726878172394,0.0002,63279.0,63261.0,0.03821587]
[1726878172616,0.0002,63279.0,63262.0,0.03821587]
[1726878172845,0.0002,63279.0,63263.0,0.04137667]
[1726878173094,0.0002,63279.0,63265.0,0.0994]
[1726878173332,0.0002,63279.0,63266.0,0.13821587]
[1726878173791,0.94833173,63278.0,63269.0,0.26305367]
[1726878174018,0.94833173,63278.0,63270.0,0.03821587]
[1726878174269,0.94833173,63278.0,63269.0,0.26305367]
[1726878174270,0.0002,63279.0,63272.0,0.1]
[1726878174545,0.0002,63279.0,63274.0,0.1]
[1726878174784,0.0002,63279.0,63275.0,0.16305367]
[1726878175053,0.0002,63279.0,63276.0,0.13843397]
[1726878175309,0.0002,63279.0,63278.0,0.1]
[1726878176457,0.0002,63279.0,63271.0,0.03843397]
[1726878176680,0.0002,63279.0,63273.0,0.1]
[1726878176930,0.0002,63279.0,63273.0,0.16305367]
[1726878177172,0.0002,63279.0,63261.0,0.03843397]
[1726878177173,1.1910854,63278.0,63261.0,0.03843397]
[1726878177403,0.0797,63278.0,63271.0,0.94833173]
[1726878177639,0.01636555,63277.0,63264.0,0.94833173]
[1726878177873,0.0002,63279.0,63264.0,0.94833173]
[1726878177874,0.0002,63279.0,63271.0,0.94833173]
[1726878178120,0.0002,63279.0,63264.0,1.02823173]
[1726878178121,0.94833173,63278.0,63264.0,1.02823173]
[1726878178360,0.01636568,63278.0,63265.0,1.1113854]
[1726878178585,0.0002,63279.0,63265.0,1.1113854]
[1726878178817,0.0002,63279.0,63266.0,0.1]
[1726878179067,0.0002,63279.0,63268.0,0.1]
[1726878179305,0.0002,63279.0,63267.0,0.16305367]
[1726878179306,0.0002,63279.0,63272.0,0.94833173]
[1726878179559,0.0002,63279.0,63265.0,0.94833173]
[1726878179560,0.0002,63279.0,63273.0,0.28021409]
[1726878180306,0.0002,63279.0,63276.0,0.1]
[1726878180538,0.0002,63279.0,63278.0,0.1]
[1726878180778,0.0002,63279.0,63278.0,0.26305367]
[1726878181005,0.0002,63279.0,63278.0,0.30156802]
[1726878181483,0.0002,63279.0,63278.0,0.26305367]
[1726878182198,0.001026,63279.0,63278.0,0.26305367]
[1726878183464,0.001026,63279.0,63278.0,0.014]
[1726878183950,0.001026,63279.0,63266.0,0.23704734]
[1726878184205,0.023,63278.0,63266.0,0.23704734]
[1726878184447,0.023,63278.0,63267.0,0.94827927]
[1726878184679,0.01652994,63277.0,63267.0,0.94827927]
[1726878184925,0.94827927,63276.0,63259.0,0.94827927]
[1726878185169,0.01650175,63276.0,63260.0,0.16305367]
[1726878185408,0.01650175,63276.0,63261.0,0.00316113]
[1726878185634,0.94827927,63275.0,63262.0,0.16305367]
[1726878186135,0.001026,63279.0,63262.0,0.16305367]
[1726878186136,0.01650149,63274.0,63262.0,0.16305367]
[1726878186386,0.01650149,63274.0,63266.0,0.014]
[1726878186628,0.94827927,63276.0,63266.0,0.014]
[1726878186878,0.01650136,63273.0,63267.0,0.94827927]
[1726878187133,0.001026,63279.0,63267.0,0.94827927]
[1726878187134,0.01650162,63275.0,63268.0,0.1]
[1726878187382,0.94827927,63278.0,63270.0,0.1]
[1726878187603,0.94827927,63278.0,63270.0,0.26305367]
[1726878187817,0.01644486,63277.0,63270.0,0.1]
[1726878188269,0.94827927,63276.0,63270.0,0.1]
[1726878188496,0.001026,63279.0,63260.0,0.1]
[1726878188717,0.001026,63279.0,63275.0,0.94827927]
[1726878188985,0.94827927,63278.0,63269.0,0.1]
[1726878189212,0.001026,63279.0,63271.0,0.1]
[1726878189430,0.01644486,63277.0,63269.0,0.1]
[1726878189653,0.001026,63279.0,63271.0,0.1]
[1726878189911,0.01644473,63276.0,63271.0,0.1]
[1726878190132,0.001026,63279.0,63271.0,0.1]
[1726878190361,0.001026,63279.0,63273.0,0.1]
[1726878190585,0.94827927,63278.0,63275.0,0.1]
[1726878190809,0.001026,63279.0,63275.0,0.26305367]
[1726878191027,0.01644486,63277.0,63275.0,0.26305367]
[1726878191247,0.001026,63279.0,63275.0,0.26305367]
[1726878191248,0.001026,63279.0,63275.0,0.1]
[1726878191686,0.001026,63279.0,63277.0,0.1]
[1726878191903,0.001026,63279.0,63278.0,0.03106728]
[1726878192144,0.001026,63279.0,63254.0,0.1]
[1726878192145,0.0797,63278.0,63254.0,0.1]
[1726878192411,0.0797,63278.0,63243.0,1.02817927]
[1726878192412,0.03944486,63277.0,63243.0,1.02817927]
[1726878192649,0.13944486,63277.0,63243.0,1.02817927]
[1726878193097,0.14144486,63277.0,63243.0,1.02817927]
[1726878193351,0.123,63277.0,63243.0,1.02817927]
[1726878193564,0.025,63277.0,63275.0,0.01]
[1726878193794,0.0797,63278.0,63275.0,0.01]
[1726878193795,0.04041145,63276.0,63275.0,0.01]
[1726878194268,0.023,63275.0,63262.0,0.00165]
[1726878194768,0.023,63273.0,63262.0,0.00165]
[1726878195224,0.01741058,63272.0,63262.0,0.00165]
[1726878195677,0.0797,63278.0,63262.0,0.00165]
[1726878195918,0.01741072,63271.0,63262.0,0.00165]
[1726878196149,0.0797,63278.0,63262.0,0.00165]
[1726878196150,0.0174115,63277.0,63262.0,0.00165]
[1726878196404,0.01740954,63270.0,63262.0,0.00165]
[1726878196681,0.0797,63278.0,63262.0,0.00165]
[1726878196928,0.0797,63278.0,63275.0,0.003]
[1726878197740,0.0797,63278.0,63262.0,0.00165]
[1726878197891,0.0797,63278.0,63262.0,0.00365]
[1726878198191,0.0797,63278.0,63265.0,0.1]
[1726878198683,0.0797,63278.0,63267.0,0.1]
[1726878198929,0.001026,63279.0,63267.0,0.1]
[1726878199690,0.001,63278.0,63275.0,0.006]
[1726878199958,0.001,63278.0,63276.0,0.16305367]
[1726878200183,0.001026,63279.0,63277.0,0.13706141]
[1726878201161,0.002026,63279.0,63277.0,0.13706141]
[1726878202098,0.002026,63279.0,63278.0,0.03070388]
[1726878202321,0.001026,63279.0,63278.0,0.06077049]
[1726878202554,0.001026,63279.0,63278.0,0.36307296]
[1726878202808,0.001026,63279.0,63278.0,0.31296421]
[1726878203262,0.001026,63279.0,63278.0,0.14991054]
[1726878203504,0.001026,63279.0,63278.0,0.06559011]
[1726878203741,0.01852829,63279.0,63278.0,0.14991054]
[1726878204004,0.01852829,63279.0,63278.0,0.1534639]
[1726878204005,0.01952829,63279.0,63278.0,0.1534639]
[1726878204251,0.01952829,63279.0,63278.0,0.16498316]
[1726878204494,0.01952829,63279.0,63278.0,0.19463362]
[1726878204714,0.002026,63279.0,63278.0,0.09463362]
[1726878204956,0.01952829,63279.0,63278.0,0.09463362]
[1726878205196,0.002026,63279.0,63278.0,0.09463362]
[1726878205483,0.01852589,63279.0,63278.0,0.20166517]
[1726878205719,0.002026,63279.0,63278.0,0.21366517]
[1726878206187,0.001026,63279.0,63278.0,0.20166517]
[1726878206628,0.002026,63279.0,63278.0,0.20866517]
[1726878208077,0.002026,63279.0,63278.0,0.47011884]
[1726878208327,0.0002,63299.0,63283.0,0.6]
[1726878208563,9.739e-05,63305.0,63289.0,0.04683828]
[1726878208789,9.739e-05,63305.0,63290.0,0.1982308]
[1726878209035,9.739e-05,63305.0,63292.0,0.123]
[1726878209297,9.739e-05,63305.0,63294.0,0.1]
[1726878209570,9.739e-05,63305.0,63297.0,0.1]
[1726878209797,9.739e-05,63305.0,63304.0,0.01563644]
[1726878210046,9.739e-05,63305.0,63304.0,0.04991561]
[1726878210295,9.739e-05,63305.0,63304.0,0.06647082]
[1726878210808,0.16315106,63305.0,63304.0,0.04991561]
[1726878211298,0.18065432,63305.0,63304.0,0.04991561]
[1726878211543,0.01760065,63305.0,63304.0,0.04991561]
[1726878212676,0.18065432,63305.0,63304.0,0.05291561]
[1726878213254,0.20365432,63305.0,63304.0,0.05291561]
[1726878213513,0.20365432,63305.0,63304.0,0.02219831]
[1726878213731,0.20365432,63305.0,63304.0,0.01911399]
[1726878215113,0.20365432,63305.0,63304.0,0.02311399]
[1726878215581,0.20365432,63305.0,63304.0,0.01911399]
[1726878216046,0.20365432,63305.0,63304.0,0.01075161]
[1726878216270,0.02309714,63303.0,63296.0,0.03058239]
[1726878216523,0.02309714,63303.0,63294.0,0.23694998]
[1726878216524,0.023,63301.0,63294.0,0.23694998]
[1726878216756,0.025,63301.0,63294.0,0.23694998]
[1726878217008,0.023,63298.0,63294.0,0.26064498]
[1726878217266,0.023,63298.0,63295.0,0.94790474]
[1726878217482,0.023,63296.0,63295.0,0.94790474]
[1726878217711,0.023,63296.0,63282.0,0.97840059]
[1726878217712,0.18605367,63296.0,63283.0,0.03049585]
[1726878217942,0.025,63293.0,63292.0,0.94790474]
[1726878218175,0.025,63293.0,63283.0,0.13049585]
[1726878218176,0.023,63292.0,63283.0,0.13049585]
[1726878218416,0.023,63292.0,63291.0,0.94790474]
[1726878218632,0.023,63292.0,63284.0,0.03049585]
[1726878218872,0.023,63292.0,63285.0,0.03049585]
[1726878219075,0.023,63290.0,63289.0,0.94790474]
[1726878219357,0.16305367,63291.0,63289.0,0.94790474]
[1726878219655,0.007,63293.0,63290.0,0.15495481]
[1726878219870,9.714e-05,63303.0,63291.0,0.06857536]
[1726878220122,9.714e-05,63303.0,63290.0,0.1]
[1726878220123,9.714e-05,63303.0,63297.0,0.4181942]
[1726878220372,9.714e-05,63303.0,63298.0,0.03049585]
[1726878220581,9.714e-05,63303.0,63299.0,0.03049585]
[1726878220808,9.714e-05,63303.0,63300.0,0.03049585]
[1726878221065,9.714e-05,63303.0,63301.0,0.03049585]
[1726878221290,9.714e-05,63303.0,63301.0,0.04486901]
[1726878221963,9.714e-05,63303.0,63301.0,0.07536486]
[1726878222198,9.714e-05,63303.0,63301.0,0.04486901]
[1726878222423,9.714e-05,63303.0,63301.0,0.07536486]
[1726878222654,9.714e-05,63303.0,63302.0,0.03049585]
[1726878222903,9.714e-05,63303.0,63302.0,0.07985176]
[1726878223145,9.714e-05,63303.0,63302.0,0.04935591]
[1726878223355,9.714e-05,63303.0,63302.0,0.07985176]
[1726878224073,9.714e-05,63303.0,63302.0,0.07960889]
[1726878225665,9.714e-05,63303.0,63302.0,0.03025298]
[1726878227247,9.714e-05,63303.0,63298.0,0.23695747]
[1726878227465,9.714e-05,63303.0,63299.0,0.03024173]
[1726878227698,9.714e-05,63303.0,63298.0,0.23695747]
[1726878227958,9.714e-05,63303.0,63279.0,0.0782]
[1726878228172,9.714e-05,63303.0,63298.0,0.23695747]
[1726878228415,9.714e-05,63303.0,63291.0,0.03369575]
[1726878228670,0.023,63301.0,63286.0,0.94791971]
[1726878228907,0.16305367,63300.0,63293.0,0.94791971]
[1726878229134,0.023,63299.0,63277.0,0.94791971]
[1726878229385,0.023,63294.0,63286.0,0.94791971]
[1726878229603,0.023,63292.0,63286.0,0.94791971]
[1726878230082,0.023,63290.0,63286.0,0.94791971]
[1726878230324,0.023,63292.0,63286.0,0.94791971]
[1726878230579,0.16305367,63291.0,63286.0,0.94791971]
[1726878230824,0.023,63290.0,63277.0,0.96191971]
[1726878231050,0.023,63288.0,63284.0,0.94791971]
[1726878231280,0.023,63288.0,63282.0,0.00165]
[1726878231281,0.16305367,63287.0,63282.0,0.00165]
[1726878231958,0.023,63286.0,63282.0,0.00165]
[1726878232201,0.023,63284.0,63282.0,0.00165]
[1726878232393,0.18605367,63283.0,63282.0,0.00165]
[1726878232663,0.19668558,63283.0,63282.0,0.00165]
[1726878235937,0.20268558,63283.0,63282.0,0.00165]
[1726878236427,0.19668558,63283.0,63282.0,0.00165]
[1726878236868,0.20368558,63283.0,63282.0,0.00265]
[1726878237087,0.20368558,63283.0,63282.0,0.02661824]
[1726878237306,0.17368558,63283.0,63282.0,0.02561824]
[1726878237526,0.17368558,63283.0,63282.0,0.00165]
[1726878238006,0.01063191,63283.0,63282.0,0.00165]
[1726878238479,0.1763,63298.0,63282.0,0.00165]
[1726878238700,0.16505367,63297.0,63282.0,0.02551824]
[1726878238917,0.16505367,63297.0,63282.0,0.02651824]
[1726878238918,0.007,63283.0,63282.0,0.02651824]
[1726878239134,0.007,63283.0,63282.0,0.00265]
[1726878239383,0.01058151,63283.0,63282.0,0.00165]
[1726878239616,0.023,63296.0,63282.0,0.00165]
[1726878239843,0.007,63283.0,63282.0,0.00265]
[1726878240277,0.01760257,63283.0,63282.0,0.00265]
[1726878240500,0.007,63283.0,63282.0,0.00265]
[1726878240720,0.01759587,63283.0,63282.0,0.00265]
[1726878240945,0.023,63296.0,63282.0,0.00265]
[1726878240946,0.023,63296.0,63282.0,0.00165]
[1726878241160,0.01059587,63283.0,63282.0,0.00165]
[1726878241384,0.023,63296.0,63282.0,0.00165]
[1726878241603,0.01059587,63283.0,63282.0,0.00165]
[1726878241821,0.023,63290.0,63282.0,0.00165]
[1726878242048,0.16305367,63297.0,63282.0,0.00165]
[1726878242049,0.023,63283.0,63282.0,0.00165]
[1726878242515,0.03653303,63283.0,63282.0,0.00165]
[1726878243201,0.1965867,63283.0,63282.0,0.00165]
[1726878243695,0.1965867,63283.0,63282.0,0.00665]
[1726878244113,0.1965867,63283.0,63282.0,0.00165]
[1726878244334,0.01053303,63283.0,63282.0,0.00165]
[1726878244772,0.023,63293.0,63282.0,0.00165]
[1726878245085,0.01051912,63283.0,63282.0,0.00165]
[1726878245313,0.023,63291.0,63282.0,0.00165]
[1726878245545,0.002,63294.0,63282.0,0.00165]
[1726878245546,0.16305367,63290.0,63282.0,0.00165]
[1726878245781,0.023,63289.0,63282.0,0.00165]
[1726878246006,0.007,63283.0,63282.0,0.00265]
[1726878246437,0.01051551,63283.0,63282.0,0.00165]
[1726878246663,0.01051537,63283.0,63282.0,0.00165]
[1726878246855,0.01051537,63283.0,63282.0,0.00765]
[1726878247072,0.16305367,63288.0,63282.0,0.00765]
[1726878247309,0.001,63290.0,63282.0,0.00765]
[1726878247562,0.4769,63301.0,63282.0,0.00165]
[1726878247778,0.16305367,63300.0,63282.0,0.00165]
[1726878248006,0.16305367,63300.0,63286.0,0.94812942]
[1726878248222,0.16305367,63300.0,63282.0,0.00265]
[1726878248441,0.16305367,63297.0,63283.0,0.94812942]
[1726878248897,0.023,63296.0,63283.0,0.94812942]
[1726878249127,0.16305367,63297.0,63283.0,0.94812942]
[1726878249128,0.023,63294.0,63283.0,0.94812942]
[1726878249347,0.023,63292.0,63283.0,0.94812942]
[1726878249565,0.0471106,63301.0,63283.0,0.94812942]
[1726878249566,0.023,63290.0,63283.0,0.94812942]
[1726878249796,0.023,63288.0,63283.0,0.94812942]
[1726878250050,0.023,63302.0,63283.0,0.94812942]
[1726878250312,0.04720774,63303.0,63283.0,0.94812942]
[1726878250313,0.023,63300.0,63283.0,0.94812942]
[1726878250540,9.714e-05,63303.0,63283.0,0.94812942]
[1726878250541,0.023,63298.0,63283.0,0.95712942]
[1726878250775,0.16305367,63297.0,63283.0,0.95712942]
[1726878251006,0.023,63296.0,63283.0,0.94812942]
[1726878251228,0.16305367,63295.0,63283.0,0.94812942]
[1726878251522,0.023,63294.0,63283.0,0.94812942]
[1726878251769,0.16305367,63293.0,63283.0,0.94812942]
[1726878252003,0.16305367,63293.0,63284.0,0.94812942]
[1726878252484,0.16305367,63293.0,63282.0,0.00165]
[1726878252485,0.023,63292.0,63283.0,0.007]
[1726878252701,0.023,63292.0,63284.0,0.94812942]
[1726878252702,0.023,63290.0,63284.0,0.94812942]
[1726878252926,0.023,63290.0,63283.0,0.007]
[1726878252927,0.023,63288.0,63282.0,0.00165]
[1726878253154,0.023,63286.0,63283.0,0.94812942]
[1726878253382,0.18605367,63285.0,63284.0,0.014]
[1726878253593,0.19661914,63285.0,63284.0,0.014]
[1726878253806,0.023,63284.0,63283.0,0.94812942]
[1726878254045,0.18605367,63284.0,63282.0,0.00165]
[1726878254291,0.16305367,63283.0,63282.0,0.00165]
[1726878254508,0.18605367,63283.0,63282.0,0.00165]
[1726878254755,0.19658637,63283.0,63282.0,0.00165]
[1726878255000,0.22494501,63283.0,63282.0,0.00165]
[1726878255263,0.023,63274.0,63273.0,0.94812942]
[1726878255508,0.18605367,63274.0,63273.0,0.94812942]
[1726878255751,0.18605367,63274.0,63267.0,0.23706607]
[1726878255986,0.023,63272.0,63267.0,0.23706607]
[1726878256238,0.023,63272.0,63260.0,0.23706607]
[1726878256239,0.023,63270.0,63268.0,0.23706607]
[1726878256462,0.19658488,63269.0,63268.0,0.23706607]
[1726878256905,0.023,63268.0,63260.0,0.23706607]
[1726878257136,0.16305367,63267.0,63260.0,0.23706607]
[1726878257361,0.17358462,63267.0,63260.0,0.23706607]
[1726878258111,0.17358462,63267.0,63264.0,0.02401615]
[1726878259519,0.17358462,63267.0,63263.0,0.0014454]
[1726878259766,0.17558462,63267.0,63264.0,0.001]
[1726878259991,0.01253095,63267.0,63264.0,0.001]
[1726878260340,0.023,63281.0,63263.0,0.0014454]
[1726878260572,0.023,63279.0,63263.0,0.0014454]
[1726878260836,0.002,63267.0,63264.0,0.94930175]
[1726878261371,0.002,63267.0,63264.0,0.001]
[1726878261607,0.01048065,63266.0,63264.0,0.001]
[1726878262013,0.01048065,63266.0,63263.0,0.0014454]
[1726878262286,0.023,63277.0,63263.0,0.0014454]
[1726878262541,0.16305367,63276.0,63263.0,0.0154454]
[1726878262784,0.023,63275.0,63264.0,0.94830175]
[1726878263014,0.16305367,63274.0,63264.0,0.94830175]
[1726878263208,0.17345921,63274.0,63264.0,0.94830175]
[1726878263349,0.001,63266.0,63264.0,0.94830175]
[1726878263946,0.16305367,63274.0,63264.0,0.94830175]
[1726878265271,0.16505367,63274.0,63264.0,0.94830175]
[1726878266197,0.16305367,63274.0,63264.0,0.94830175]
[1726878266410,0.16505367,63274.0,63264.0,0.94830175]
[1726878266855,0.16505367,63274.0,63264.0,0.94995175]
[1726878267062,0.16305367,63274.0,63264.0,0.94995175]
[1726878267944,0.4769,63282.0,63271.0,0.94830175]
[1726878268203,0.63995367,63282.0,63265.0,0.1]
[1726878268417,0.002,63274.0,63271.0,0.94830175]
[1726878268852,0.4769,63282.0,63271.0,0.94830175]
[1726878269305,0.01043411,63281.0,63267.0,0.1]
[1726878269533,0.01043411,63281.0,63271.0,0.94830175]
[1726878269747,0.01043411,63281.0,63271.0,0.95030175]
[1726878270178,0.01043411,63281.0,63272.0,0.10316077]
[1726878270674,0.01043411,63281.0,63272.0,0.1]
[1726878270892,0.01043411,63281.0,63273.0,0.94830175]
[1726878271333,0.4769,63282.0,63273.0,0.94830175]
[1726878273168,0.4769,63282.0,63273.0,0.95230175]
[1726878273595,0.07063985,63289.0,63273.0,0.95230175]
[1726878273811,0.023,63285.0,63273.0,0.004]
[1726878274035,0.023,63283.0,63274.0,0.94830175]
[1726878274251,0.16305367,63282.0,63274.0,0.94830175]
[1726878274484,0.17357038,63282.0,63274.0,0.94830175]
[1726878275577,0.17557038,63282.0,63274.0,0.94830175]
[1726878275811,0.023,63281.0,63274.0,0.94830175]
[1726878276029,0.16305367,63280.0,63274.0,0.94830175]
[1726878276242,0.17357012,63280.0,63274.0,0.94830175]
[1726878277859,0.17357012,63280.0,63265.0,0.23705296]
[1726878278078,0.023,63279.0,63265.0,0.23705296]
[1726878278316,0.023,63277.0,63265.0,0.23705296]
[1726878278535,0.16305367,63276.0,63268.0,0.94827927]
[1726878278758,0.17355615,63276.0,63268.0,0.94827927]
[1726878278973,0.023,63275.0,63269.0,0.94827927]
[1726878279187,0.023,63273.0,63269.0,0.94827927]
[1726878279407,0.16305367,63272.0,63269.0,0.94827927]
[1726878279600,0.01050196,63272.0,63269.0,0.94827927]
[1726878280067,0.01050196,63272.0,63264.0,0.00165]
[1726878280068,0.023825,63282.0,63268.0,0.02454676]
[1726878280298,0.023,63280.0,63269.0,0.02454676]
[1726878280513,0.16305367,63279.0,63269.0,0.02454676]
[1726878280713,0.16305367,63279.0,63265.0,0.014]
[1726878280714,0.17355654,63279.0,63270.0,0.97282603]
[1726878280976,0.17355654,63279.0,63270.0,0.94827927]
[1726878281397,0.17355654,63279.0,63270.0,0.97282603]
[1726878282323,0.17355654,63279.0,63271.0,0.02454676]
[1726878282756,0.16305367,63279.0,63271.0,0.02454676]
[1726878282974,0.16305367,63279.0,63272.0,0.02454676]
[1726878283175,0.01050274,63278.0,63272.0,0.02454676]
[1726878283612,0.16305367,63279.0,63273.0,0.02454676]
[1726878283816,0.01050261,63277.0,63274.0,0.02454676]
[1726878284037,0.01050274,63278.0,63274.0,0.02454676]
[1726878284241,0.16305367,63279.0,63274.0,0.02454676]
[1726878284472,0.01050274,63278.0,63272.0,0.02454676]
[1726878284692,0.01150274,63278.0,63273.0,0.02454676]
[1726878284911,0.01150274,63278.0,63264.0,0.00165]
[1726878285129,0.01150274,63278.0,63273.0,0.02455679]
[1726878285340,0.01050274,63278.0,63273.0,0.02455679]
[1726878285766,0.01050274,63278.0,63274.0,0.26161724]
[1726878286077,0.01050274,63278.0,63275.0,0.02455679]
[1726878286293,0.003,63279.0,63273.0,0.0993]
[1726878286523,0.003,63279.0,63274.0,0.00993]
[1726878286985,0.000825,63282.0,63274.0,0.00993]
[1726878287188,0.000825,63282.0,63275.0,0.23706045]
[1726878287408,9.688e-05,63301.0,63278.0,0.0993]
[1726878287651,0.23706045,63297.0,63280.0,0.1]
[1726878287884,9.688e-05,63301.0,63282.0,0.1]
[1726878287885,0.00875397,63300.0,63282.0,0.1]
[1726878288136,0.00875449,63296.0,63283.0,0.16305367]
[1726878288357,9.688e-05,63301.0,63289.0,0.1]
[1726878288615,9.688e-05,63301.0,63290.0,0.05481564]
[1726878288829,9.688e-05,63301.0,63291.0,0.02060927]
[1726878289050,9.688e-05,63301.0,63292.0,0.02060927]
[1726878289276,9.688e-05,63301.0,63289.0,1.04803953]
[1726878289277,9.688e-05,63301.0,63296.0,0.94803953]
[1726878289521,9.688e-05,63301.0,63289.0,1.04803953]